[Event "Bangabandhu Premier Div League 2023-24"]
[Site "Dhaka"]
[Date "2024.02.10"]
[Round "10.3"]
[White "Subrota, Biswas"]
[Black "Chowdhury, Sohel"]
[Result "1-0"]
[ECO "B12"]
[WhiteElo "2223"]
[BlackElo "1956"]
[Annotator "NA RC"]
[PlyCount "83"]
[EventDate "2024.02.01"]
[EventCountry "BAN"]
[SourceTitle "playchess.com"]
[Source "ChessBase"]
[SourceQuality "1"]
[TimeControl "40/5400+30:1800+30"]

1. e4 {[%emt 1:31:00]} c6 {[%emt 0:01:32]} 2. d4 {[%emt 0:00:00]} d5 {[%emt 0:00:13]} 3. e5 {[%emt 0:00:00]} Bf5 {[%emt 0:02:44]} 4. h4 {[%emt 0:00:00]} h5 {[%emt 1:28:01]} 5. Bd3 {[%emt 0:00:00]} Bxd3 {[%emt 0:00:00]} 6. Qxd3 {[%emt 0:00:00]} e6 {[%emt 0:00:00]} 7. Nf3 {[%emt 0:00:00]} Ne7 {[%emt 0:00:00]} 8. Nbd2 {[%emt 0:03:30]} Nf5 {[%emt 0:00:00]} 9. c4 {[%emt 0:00:00]} Nd7 {[%emt 0:02:30]} 10. b3 {[%emt 0:01:00]} Be7 {[%emt 0:00:30]} 11. g3 {[%emt 0:00:30]} g6 {[%emt 0:00:00]} 12. Nf1 {[%emt 0:00:30]} a5 {[%emt 0:01:00]} 13. a4 {[%emt 0:00:30]} Bb4+ {[%emt 0:00:30]} 14. Ke2 {[%emt 0:00:30]} Be7 {[%emt 0:00:00]} 15. Bg5 {[%emt 0:00:00]} O-O {[%emt 0:00:00]} 16. Ne3 {[%emt 0:01:00]} f6 {[%emt 0:01:30]} 17. Nxf5 {[%emt 0:00:00]} exf5 {[%emt 0:00:00]} 18. exf6 {[%emt 0:00:00]} Bxf6 {[%emt 0:00:00]} 19. cxd5 {[%emt 0:01:30]} Re8+ {[%emt 0:01:30]} 20. Kf1 {[%emt 0:00:00]} cxd5 {[%emt 0:00:30]} 21. Qb5 {[%emt 0:00:00]} Nb6 {[%emt 0:00:30]} 22. Kg2 {[%emt 0:01:30]} Re4 {[%emt 0:00:30]} 23. Rac1 {[%emt 0:00:30]} Qd6 {[%emt 0:00:00]} 24. Bxf6 {[%emt 0:00:00]} Qxf6 {[%emt 0:00:00]} 25. Rc7 {[%emt 0:00:00]} f4 {[%emt 0:00:00]} 26. Rxb7 {[%emt 0:00:00]} Re6 {[%emt 0:00:00]} 27. Rxb6 {[%emt 0:00:00]} Rxb6 {[%emt 0:00:00]} 28. Qxd5+ {[%emt 0:00:00]} Kg7 {[%emt 0:00:00]} 29. Qxa8 {[%emt 0:00:00]} fxg3 {[%emt 0:00:00]} 30. fxg3 {[%emt 0:00:00]} Rxb3 {[%emt 0:00:00]} 31. Rf1 {[%emt 0:04:00]} Rb2+ {[%emt 0:04:30]} 32. Kg1 {[%emt 0:00:30]} Qd6 {[%emt 0:00:00]} 33. Ne5 {[%emt 0:00:30]} Qxd4+ {[%emt 0:00:00]} 34. Kh1 {[%emt 0:00:30]} Rf2 {[%emt 0:00:00]} 35. Qb7+ {[%emt 0:00:30]} Kg8 {[%emt 0:00:00]} 36. Rxf2 {[%emt 0:00:00]} Qxf2 {[%emt 0:00:00]} 37. Qc8+ {[%emt 0:01:00]} Kg7 {[%emt 0:00:00]} 38. Qd7+ {[%emt 0:00:00]} Kh6 {[%emt 0:03:30]} 39. Nf7+ {[%emt 0:00:00]} Kg7 {[%emt 0:00:00]} 40. Ng5+ {[%emt 0:00:00]} Kg8 {[%emt 0:00:00]} 41. Qe8+ {[%emt 0:00:00]} Kg7 {[%emt 0:17:10]} 42. Ne6+ {[%emt 0:00:00]} 1-0

[Event "Bangabandhu Premier Div League 2023-24"]
[Site "Dhaka"]
[Date "2024.02.10"]
[Round "10.4"]
[White "Suvradeepta, Das"]
[Black "Uddin, Saif"]
[Result "1/2-1/2"]
[ECO "E11"]
[WhiteElo "2141"]
[BlackElo "1938"]
[Annotator "NA RC"]
[PlyCount "107"]
[EventDate "2024.02.01"]
[EventCountry "BAN"]
[SourceTitle "playchess.com"]
[Source "ChessBase"]
[SourceQuality "1"]
[TimeControl "40/5400+30:1800+30"]

1. d4 {[%emt 1:31:00]} Nf6 {[%emt 0:04:50]} 2. c4 {[%emt 0:00:00]} e6 {[%emt 0:00:14]} 3. g3 {[%emt 0:00:00]} Bb4+ {[%emt 0:00:36]} 4. Bd2 {[%emt 0:00:00]} Qe7 {[%emt 0:00:30]} 5. Nf3 {[%emt 0:02:00]} O-O {[%emt 0:01:02]} 6. Bg2 {[%emt 0:00:30]} d5 {[%emt 0:01:24]} 7. O-O {[%emt 0:00:00]} c6 {[%emt 1:25:24]} 8. Qc2 {[%emt 0:01:00]} Nbd7 {[%emt 0:00:00]} 9. Bf4 {[%emt 0:00:30]} Bd6 {[%emt 0:01:00]} 10. Bxd6 {[%emt 0:00:00]} Qxd6 {[%emt 0:00:00]} 11. Nbd2 {[%emt 0:01:00]} e5 {[%emt 0:01:00]} 12. cxd5 {[%emt 0:00:00]} cxd5 {[%emt 0:00:00]} 13. dxe5 {[%emt 0:00:00]} Nxe5 {[%emt 0:00:00]} 14. Nxe5 {[%emt 0:00:00]} Qxe5 {[%emt 0:00:00]} 15. Nf3 {[%emt 0:02:00]} Qh5 {[%emt 0:02:00]} 16. Rac1 {[%emt 0:00:00]} Re8 {[%emt 0:00:30]} 17. Qd2 {[%emt 0:01:00]} Re7 {[%emt 0:00:30]} 18. Rfe1 {[%emt 0:00:00]} Bg4 {[%emt 0:00:00]} 19. Nd4 {[%emt 0:00:00]} Rae8 {[%emt 0:01:00]} 20. f3 {[%emt 0:00:00]} Bh3 {[%emt 0:00:30]} 21. Qf4 {[%emt 0:02:00]} Bxg2 {[%emt 0:00:00]} 22. Kxg2 {[%emt 0:00:30]} h6 {[%emt 0:01:00]} 23. Rc2 {[%emt 0:00:30]} Nh7 {[%emt 0:00:30]} 24. Qf5 {[%emt 0:00:30]} Ng5 {[%emt 0:00:30]} 25. Rc8 {[%emt 0:00:30]} Rxc8 {[%emt 0:00:00]} 26. Qxc8+ {[%emt 0:00:30]} Kh7 {[%emt 0:01:00]} 27. h4 {[%emt 0:00:30]} Ne6 {[%emt 0:00:30]} 28. Qc2+ {[%emt 0:00:30]} Qg6 {[%emt 0:00:00]} 29. Qxg6+ {[%emt 0:00:30]} Kxg6 {[%emt 0:01:00]} 30. Nxe6 {[%emt 0:00:00]} Rxe6 {[%emt 0:00:00]} 31. Kf2 {[%emt 0:00:11]} Rb6 {[%emt 0:00:00]} 32. Rb1 {[%emt 0:00:15]} Kf5 {[%emt 0:00:00]} 33. Ke3 {[%emt 0:00:07]} Ke5 {[%emt 0:00:00]} 34. Kd3 {[%emt 0:00:25]} f5 {[%emt 0:00:00]} 35. f4+ {[%emt 0:00:56]} Kd6 {[%emt 0:00:00]} 36. b3 {[%emt 0:01:36]} Rc6 {[%emt 0:00:00]} 37. h5 {[%emt 0:00:00]} b5 {[%emt 0:00:00]} 38. b4 {[%emt 0:00:22]} Rc4 {[%emt 0:00:00]} 39. e3 {[%emt 0:01:08]} d4 {[%emt 0:00:00]} 40. e4 {[%emt 0:00:00]} fxe4+ {[%emt 0:00:00]} 41. Kxe4 {[%emt 0:29:50]} Rc3 {[%emt 0:36:00]} 42. Rg1 {[%emt 0:01:40]} Ke6 {[%emt 0:00:30]} 43. g4 {[%emt 0:00:30]} d3 {[%emt 0:00:00]} 44. Ke3 {[%emt 0:00:30]} Ra3 {[%emt 0:01:00]} 45. g5 {[%emt 0:00:30]} Kf5 {[%emt 0:00:00]} 46. gxh6 {[%emt 0:00:00]} gxh6 {[%emt 0:01:00]} 47. Rg6 {[%emt 0:00:00]} Rxa2 {[%emt 0:00:30]} 48. Kxd3 {[%emt 0:01:30]} Kxf4 {[%emt 0:00:00]} 49. Rxh6 {[%emt 0:00:00]} Kg5 {[%emt 0:00:00]} 50. Rc6 {[%emt 0:01:00]} a5 {[%emt 0:01:30]} 51. Rc5+ {[%emt 0:00:00]} Kh6 {[%emt 0:00:00]} 52. Rxb5 {[%emt 0:00:00]} axb4 {[%emt 0:00:00]} 53. Rxb4 {[%emt 0:00:00]} Ra3+ {[%emt 0:00:00]} 54. Ke4 {[%emt 0:02:00]} 1/2-1/2

[Event "Bangabandhu Premier Div League 2023-24"]
[Site "Dhaka"]
[Date "2024.02.10"]
[Round "10.4"]
[White "Sohan, Sobhan"]
[Black "Anata, Choudhury"]
[Result "0-1"]
[ECO "B20"]
[WhiteElo "1544"]
[BlackElo "2196"]
[Annotator "TA"]
[PlyCount "98"]
[EventDate "2024.02.01"]
[EventCountry "BAN"]
[SourceTitle "playchess.com"]
[Source "ChessBase"]
[SourceQuality "1"]
[TimeControl "40/5400+30:1800+30"]

{[%evp 9,98,-8,-2,-30,-12,-124,-134,-141,-136,-135,-139,-135,-137,-148,-143,-137,-139,-151,-151,-165,-154,-147,-152,-151,-147,-150,-146,-162,-158,-152,-175,-170,-176,-212,-216,-215,-208,-204,-198,-218,-189,-189,-195,-360,-360,-356,-343,-411,-420,-670,-670,-808,-801,-873,-851,-932,-932,-914,-891,-1045,-1027,-1450,-1318,-1721,-1426,-1853,-1737,-29984,-29985,-29985,-29986,-29986,-29987,-29987,-29988,-29986,-29987,-29988,-29989,-29989,-29990,-29990,-29991,-29991,-29991,-29991,-29992,-29993,-29994,-29994,-29995]} 1. e4 {[%emt 0:00:31]} c5 {[%emt 0:00:22]} 2. Bc4 {[%emt 1:30:59]} Nc6 {[%emt 1:31:08]} 3. c3 {[%emt 0:00:00]} Nf6 {[%emt 0:00:00]} 4. d3 {[%emt 0:00:00]} d5 {[%emt 0:00:00]} 5. exd5 {[%emt 0:00:00]} Nxd5 {[%emt 0:00:00]} 6. h3 {[%emt 0:00:00]} Nb6 {[%emt 0:00:00] next ...Nxc4 is good for Black.} 7. Na3 {[%emt 0:00:00]} (7. Bb5 $1 $11) 7... Nxc4 $17 {[%emt 0:00:00]} 8. Nxc4 {[%emt 0:00:00] Black is clearly better.} Bf5 {[%emt 0:00:00]} 9. Nf3 {[%emt 0:00:00]} Qxd3 {[%emt 0:00:00]} ({Much less strong is} 9... Bxd3 10. Nce5 c4 11. Be3 $15) 10. Qxd3 {[%emt 0:00:00]} Bxd3 {[%emt 0:00:00]} 11. Nce5 {[%emt 0:00:00]} Nxe5 {[%emt 0:00:00]} 12. Nxe5 {[%emt 0:00:00]} Ba6 {[%emt 0:00:00]} 13. Be3 {[%emt 0:00:00]} f6 {[%emt 0:00:00]} 14. Nf3 {[%emt 0:00:00]} e5 {[%emt 0:00:00]} 15. Nd2 {[%emt 0:00:00]} O-O-O {[%emt 0:00:00]} 16. O-O-O {[%emt 0:00:00]} Be2 {[%emt 0:00:00]} 17. Rde1 {[%emt 0:00:00]} Bd3 {[%emt 0:00:00]} 18. f3 {[%emt 0:00:00]} Be7 {[%emt 0:00:00]} 19. g4 {[%emt 0:00:00]} Rd7 {[%emt 0:00:00] Black is more active.} 20. Ne4 {[%emt 0:00:00]} b6 {[%emt 0:00:00]} 21. Rd1 {[%emt 0:00:00]} Be2 {[%emt 0:00:00][%csl LRd1,LRf3][%cal Oe2f3] A strong pair of Bishops.} 22. Rxd7 {[%emt 0:00:00]} Kxd7 {[%emt 0:00:00]} 23. Nd2 {[%emt 0:00:00]} h5 {[%emt 0:00:00] [#] ...hxg4 would now be deadly.} 24. Re1 {[%emt 0:00:00]} Ba6 {[%emt 0:00:00]} 25. c4 {[%emt 0:00:00]} Bb7 {[%emt 0:00:00]} 26. Rg1 $2 {[%emt 0:00:00]} (26. Kd1) 26... hxg4 $19 {[%emt 0:00:00]} 27. hxg4 {[%emt 0:00:00]} Rh3 {[%emt 0:00:00][%cal Oe5e4]} 28. Rf1 {[%emt 0:00:00] [#]} e4 $1 {[%emt 0:00:00][%mdl 512]} 29. Nxe4 {[%emt 0:00:00]} (29. Bf4 $142 g5 (29... exf3 $2 30. Rd1 $19) 30. Bb8) (29. b3 exf3) 29... Bxe4 {[%emt 0:00:00]} 30. fxe4 {[%emt 0:00:00]} Rxe3 {[%emt 0:00:00][%mdl 4096] Endgame. KRB-KR} 31. Kd2 {[%emt 0:00:00]} Rxe4 {[%emt 0:00:00]} 32. Rg1 {[%emt 0:00:00]} Rxc4 {[%emt 0:00:00]} 33. Kd3 {[%emt 0:00:00]} Rd4+ {[%emt 0:00:00]} 34. Ke3 {[%emt 0:00:00]} Bd6 {[%emt 0:00:00]} 35. Rg2 {[%emt 0:00:00]} Ke6 {[%emt 0:00:00]} 36. b3 {[%emt 0:00:00]} g5 {[%emt 0:00:00] ( -> ...Bf4+)} 37. Re2 {[%emt 0:00:00]} Be5 {[%emt 0:00:00]} 38. Rg2 {[%emt 0:00:00]} Bf4+ {[%emt 0:00:00] Black mates.} 39. Kf3 {[%emt 0:00:00]} Rd3+ {[%emt 0:00:00]} 40. Ke2 {[%emt 0:00:00]} Rd2+ {[%emt 0:00:00]} 41. Kf3 {[%emt 0:00:00]} Rxg2 {[%emt 0:00:00]} 42. Kxg2 {[%emt 0:00:00]} f5 {[%emt 0:00:00]} 43. gxf5+ {[%emt 0:00:12]} Kxf5 {[%emt 0:50:30] KB-KPP} 44. a3 {[%emt 0:01:26]} b5 {[%emt 0:00:00]} 45. Kf3 {[%emt 0:00:54]} g4+ {[%emt 0:00:00]} 46. Ke2 {[%emt 0:02:16]} c4 {[%emt 0:00:00]} 47. bxc4 {[%emt 0:00:27]} bxc4 {[%emt 0:00:00]} 48. a4 {[%emt 0:00:22]} Ke4 {[%emt 0:00:00]} 49. a5 {[%emt 0:00:34]} c3 {[%emt 0:00:00] White got outplayed after the opening.   Weighted Error Value: White=1.06/Black=0.02 (flawless) .  Mistake:       	White=3     	---        OK:         	White=5     	Black=8      Best:        	White=1     	Black=4} 0-1

[Event "Bangabandhu Premier Div League 2023-24"]
[Site "Dhaka"]
[Date "2024.02.10"]
[Round "10.5"]
[White "Sanket Chakravarty"]
[Black "Abu Sufian, Shakil"]
[Result "1-0"]
[ECO "D45"]
[WhiteElo "2361"]
[BlackElo "2199"]
[Annotator "TA"]
[PlyCount "73"]
[EventDate "2024.02.01"]
[EventCountry "BAN"]
[SourceTitle "playchess.com"]
[Source "ChessBase"]
[SourceQuality "1"]
[TimeControl "40/5400+30:1800+30"]

{[%evp 23,73,0,9,0,30,0,0,0,36,38,31,29,30,18,20,0,53,68,50,41,61,60,93,90,108,98,117,113,88,75,74,68,131,131,656,662,690,695,582,581,999,999,999,987,991,978,912,580,1026,1012,29998,29999]} 1. Nf3 {[%emt 0:00:15]} d5 {[%emt 0:00:16]} 2. c4 {[%emt 0:00:18]} c6 {[%emt 0:00:14]} 3. e3 {[%emt 0:00:24]} Nf6 {[%emt 0:00:17]} 4. Nc3 {[%emt 0:00:16]} e6 {[%emt 0:00:22]} 5. b3 {[%emt 0:00:20]} Nbd7 {[%emt 0:00:25]} 6. Bb2 {[%emt 0:00:45]} Bd6 {[%emt 0:00:33]} 7. d4 {[%emt 0:00:18]} O-O {[%emt 0:00:24]} 8. Be2 {[%emt 1:31:54]} Qe7 {[%emt 0:06:28]} 9. O-O {[%emt 0:00:00]} b6 {[%emt 0:00:22]} 10. Qc2 {[%emt 0:00:00]} Bb7 {[%emt 0:00:07]} 11. Rad1 {[%emt 0:00:00]} Rad8 {[%emt 0:00:08]} 12. Rfe1 {[%emt 0:00:00]} Rfe8 {[%emt 0:00:03]} 13. Bf1 {[%emt 0:02:30]} e5 {[%emt 1:27:21]} 14. dxe5 {[%emt 0:00:00]} Nxe5 {[%emt 0:00:00]} 15. Nd4 {[%emt 0:00:00] The position is equal.} g6 {[%emt 0:01:00] Against Nf5} 16. cxd5 {[%emt 0:00:00]} cxd5 {[%emt 0:00:00]} 17. Bb5 {[%emt 0:00:00]} Rf8 {[%emt 0:00:00]} 18. Qe2 {[%emt 0:02:30]} Rc8 {[%emt 0:00:00]} 19. Ba6 {[%emt 0:00:00]} Bb4 {[%emt 0:00:00]} (19... Bxa6 $11 20. Qxa6 Rxc3 21. Bxc3 Ne4) 20. Bxb7 $14 {[%emt 0:00:00]} Qxb7 {[%emt 0:00:00]} 21. Rc1 {[%emt 0:01:30]} Rfe8 {[%emt 0:00:00]} 22. Red1 {[%emt 0:00:00]} a6 {[%emt 0:00:00]} 23. Nf3 {[%emt 0:01:00]} Nxf3+ {[%emt 0:00:00]} 24. Qxf3 {[%emt 0:00:00]} Bxc3 {[%emt 0:00:00]} 25. Rxc3 {[%emt 0:00:00]} Ne4 {[%emt 0:00:00]} 26. Rxc8 {[%emt 0:00:00]} Rxc8 {[%emt 0:05:30]} 27. h4 {[%emt 0:02:00]} h5 {[%emt 0:00:30]} (27... Rc2 $2 28. Qxe4 Rxb2 29. Qe8+ (29. Rxd5 Rb1+ 30. Qxb1 Qxd5 $16) (29. Qxd5 Qxd5 30. Rxd5 Rxa2 $11) 29... Kg7 30. Qe5+ Kh6 31. Qxb2 $18) (27... b5 $14) 28. Qf4 $1 $40 {[%emt 0:00:30][%mdl 128] Hoping for Qe5. White attacks with force.} Rc2 $2 {[%emt 0:00:00][%mdl 8192] [#] This costs Black the game.} (28... Nc3 $16 29. Rd2 b5) 29. Qxe4 $3 $18 {[%emt 0:00:00][%mdl 512] Threatening mate with Qe8+.} Rxb2 {[%emt 0:00:00][%mdl 4096] Endgame. [#] KQR-KQR} 30. Qe8+ {[%emt 0:00:00]} ({Weaker is} 30. Rxd5 Qc7 $14 (30... Qc8 $2 31. Qd4 $18)) 30... Kh7 {[%emt 0:00:00] [#]} 31. Rc1 {[%emt 0:00:00] Prevents Qc7. Rc8 would now be deadly.} d4 {[%emt 0:00:00][%cal Bd5d4,Bd4d3,Bd3d2][%mdl 32]} 32. Rc8 {[%emt 0:00:00]} ({Not} 32. exd4 Qd5 $16) 32... Qxc8 {[%emt 0:00:00]} 33. Qxc8 {[%emt 0:00:00]} d3 {[%emt 0:00:00]} 34. Qd7 {[%emt 0:00:00]} ({And not} 34. Qxa6 Rb1+ 35. Kh2 d2 $11) 34... d2 {[%emt 0:00:00]} 35. Kh2 {[%emt 0:03:30]} Rxa2 {[%emt 0:00:00]} 36. Qxf7+ {[%emt 0:00:00]} Kh6 {[%emt 0:04:30]} 37. Qg8 {[%emt 0:00:00] Weighted Error Value: White=0.25 (precise) /Black=0.91.  Loses game:     	---       	Black=1      Mistake:       	---       	Black=2      Inaccurate:     	White=1     	Black=4      OK:         	White=8     	Black=4      Best:        	White=1     	Black=1      Strong:       	White=1     	---} 1-0

[Event "Bangabandhu Premier Div League 2023-24"]
[Site "Dhaka"]
[Date "2024.02.10"]
[Round "10.5"]
[White "Islam, M.M. Zahirul"]
[Black "Majumder, Ahmed Hossain"]
[Result "1/2-1/2"]
[ECO "A57"]
[WhiteElo "1876"]
[BlackElo "1934"]
[Annotator "NA RC"]
[PlyCount "68"]
[EventDate "2024.02.01"]
[EventCountry "BAN"]
[SourceTitle "playchess.com"]
[Source "ChessBase"]
[SourceQuality "1"]
[TimeControl "40/5400+30:1800+30"]

1. d4 {[%emt 0:00:03]} Nf6 {[%emt 0:00:22]} 2. c4 {[%emt 0:00:09]} c5 {[%emt 0:01:07]} 3. d5 {[%emt 0:00:03]} b5 {[%emt 0:00:19]} 4. cxb5 {[%emt 0:00:09]} a6 {[%emt 0:00:11]} 5. b6 {[%emt 0:00:01]} d6 {[%emt 0:00:29]} 6. Nc3 {[%emt 0:00:03]} Nbd7 {[%emt 0:00:28]} 7. e4 {[%emt 0:00:08]} g6 {[%emt 0:00:52]} 8. a4 {[%emt 0:00:59]} Qxb6 {[%emt 0:00:50]} 9. Nf3 {[%emt 0:00:29]} Bg7 {[%emt 0:00:19]} 10. Bd3 {[%emt 0:00:18]} O-O {[%emt 1:30:33]} 11. h3 {[%emt 1:33:38]} Ne8 {[%emt 0:00:00]} 12. O-O {[%emt 0:00:00]} Ne5 {[%emt 0:00:00]} 13. Nxe5 {[%emt 0:00:00]} Bxe5 {[%emt 0:00:00]} 14. Kh1 {[%emt 0:00:00]} Bg7 {[%emt 0:00:00]} 15. Qe2 {[%emt 0:00:00]} Nf6 {[%emt 0:00:00]} 16. f4 {[%emt 0:00:00]} e6 {[%emt 0:00:00]} 17. Bc4 {[%emt 0:00:00]} exd5 {[%emt 0:00:00]} 18. Nxd5 {[%emt 0:00:00]} Nxd5 {[%emt 0:00:00]} 19. Bxd5 {[%emt 0:00:00]} Bb7 {[%emt 0:00:00]} 20. Qc4 {[%emt 0:00:00]} Bxd5 {[%emt 0:00:00]} 21. Qxd5 {[%emt 0:00:00]} Rab8 {[%emt 0:00:00]} 22. Rf3 {[%emt 0:00:00]} Bd4 {[%emt 0:00:00]} 23. Rb1 {[%emt 0:00:00]} Qb4 {[%emt 0:00:00]} 24. Be3 {[%emt 0:00:00]} Qxa4 {[%emt 0:00:00]} 25. Qxd6 {[%emt 0:00:00]} Qc2 {[%emt 0:00:00]} 26. Rbf1 {[%emt 0:00:00]} Qxe4 {[%emt 0:01:29]} 27. Bxd4 {[%emt 0:00:00]} Qxd4 {[%emt 0:00:19]} 28. Qxa6 {[%emt 0:00:00]} Rxb2 {[%emt 0:00:30]} 29. f5 {[%emt 0:00:00]} Qd2 {[%emt 0:02:55]} 30. R3f2 {[%emt 0:00:00]} Qd4 {[%emt 0:00:22]} 31. Rf4 {[%emt 0:00:00]} Qd2 {[%emt 0:00:21]} 32. Qc6 {[%emt 0:00:00]} Rb1 {[%emt 0:00:33]} 33. fxg6 {[%emt 0:00:00]} Rxf1+ {[%emt 0:00:31]} 34. Rxf1 {[%emt 0:00:00]} hxg6 {[%emt 0:00:29]} 1/2-1/2

[Event "Bangabandhu Premier Div League 2023-24"]
[Site "Dhaka"]
[Date "2024.02.10"]
[Round "10.6"]
[White "Rathanvel, V S"]
[Black "Rahman, Syed Mahfuzur"]
[Result "1-0"]
[ECO "B51"]
[WhiteElo "2474"]
[BlackElo "2087"]
[Annotator "TA"]
[PlyCount "71"]
[EventDate "2024.02.01"]
[EventCountry "BAN"]
[SourceTitle "playchess.com"]
[Source "ChessBase"]
[SourceQuality "1"]
[TimeControl "40/5400+30:1800+30"]

{[%evp 20,71,45,38,57,47,46,42,76,38,44,37,51,39,53,58,61,57,59,63,59,58,67,67,70,53,153,168,182,183,174,106,154,151,216,178,247,248,248,56,237,229,432,435,471,511,510,504,820,818,786,777,1622,1216]} 1. e4 {[%emt 0:00:02]} c5 {[%emt 0:10:25]} 2. Nf3 {[%emt 0:00:18]} d6 {[%emt 0:00:05]} 3. Bb5+ {[%emt 0:04:57]} Nc6 {[%emt 0:01:02]} 4. O-O {[%emt 0:00:21]} Bd7 {[%emt 0:00:11]} 5. Re1 {[%emt 0:00:17]} a6 {[%emt 0:00:09]} 6. Bf1 {[%emt 0:01:10]} Bg4 {[%emt 0:02:45]} 7. h3 {[%emt 0:03:14]} Bxf3 {[%emt 0:00:13]} 8. Qxf3 {[%emt 0:00:07]} g6 {[%emt 0:00:15]} 9. c3 {[%emt 0:00:35]} Bg7 {[%emt 0:00:12]} 10. d3 {[%emt 0:00:12]} Nf6 {[%emt 0:01:00]} 11. Be3 {[%emt 0:00:46]} e5 {[%emt 0:01:20]} 12. Nd2 {[%emt 0:08:44]} O-O {[%emt 0:01:04]} 13. a4 {[%emt 0:09:35]} b6 {[%emt 0:06:05] White is slightly better.} 14. g3 {[%emt 0:18:25]} Re8 {[%emt 0:15:59]} 15. Bg2 {[%emt 0:06:43]} Qc7 {[%emt 0:02:08]} 16. Bg5 {[%emt 0:04:36]} Re6 {[%emt 0:07:51]} 17. Nf1 {[%emt 0:04:59]} h6 {[%emt 0:03:13]} 18. Bd2 {[%emt 0:00:06]} Rd8 {[%emt 0:01:56]} 19. Ne3 {[%emt 0:01:26]} Ree8 {[%emt 0:08:28]} 20. Qd1 {[%emt 0:04:01]} Ne7 {[%emt 0:03:52]} 21. Qb3 {[%emt 0:01:15]} Rb8 {[%emt 0:02:26]} 22. Rf1 {[%emt 0:06:14]} Nh5 {[%emt 0:09:01]} (22... Nc6 $14) 23. Ng4 $16 {[%emt 0:05:35] White is more active.} g5 {[%emt 0:02:47]} 24. Qd1 {[%emt 0:00:51][%cal Og4h6] Nxh6+! is the strong threat.} Nf6 {[%emt 0:14:29]} 25. Ne3 {[%emt 0:03:33]} (25. h4 $18) 25... Ng6 {[%emt 0:04:43]} ({Black should play} 25... Rbd8) 26. Nf5 {[%emt 0:00:30]} Rbd8 {[%emt 0:01:08]} (26... Kh7 $16 27. Kh1 Red8) 27. Qf3 {[%emt 0:01:02]} Re6 {[%emt 0:00:30]} (27... d5 {was worth a try.}) 28. h4 $18 {[%emt 0:05:08]} gxh4 {[%emt 0:00:38]} 29. gxh4 $2 {[%emt 0:00:01] [#]} (29. Nxh6+ Bxh6 30. Bxh6 d5) ({Better is} 29. Bh3 $18) 29... Kh7 $2 {[%emt 0:00:15] Black cannot hold the game after this.} (29... d5 $14) 30. Bh3 {[%emt 0:01:03]} Ree8 $2 {[%emt 0:00:16]} (30... Ne8 31. Kh1 d5) 31. h5 {[%emt 0:02:16] White is clearly winning.} Nf4 {[%emt 0:00:01]} 32. Bxf4 {[%emt 0:00:15]} exf4 {[%emt 0:00:02]} 33. Qxf4 {[%emt 0:00:09]} Rg8 {[%emt 0:00:16]} (33... Re5 $142 34. Kh1 Rxf5 35. Bxf5+ (35. Qxf5+ Kh8 $18) 35... Kh8) 34. Kh1 {[%emt 0:00:25] [#] aiming for Rg1.} Nxh5 {[%emt 0:01:04]} 35. Qh4 {[%emt 0:00:01]} Nf6 {[%emt 0:00:45]} 36. Nxg7 {[%emt 0:00:54] Weighted Error Value: White=0.17 (very precise) /Black=0.52.  Loses game:     	---       	Black=1      Missed win:     	White=1     	---        Mistake:       	White=1     	Black=6      Inaccurate:     	White=1     	Black=1      OK:         	White=10    	Black=4      Best:        	White=4     	Black=1} 1-0